bitfinex/quotes_ETHUSD_20251224
["timestamp","ask_amount","ask_price","bid_price","bid_amount"]
[1766580105709,4.50406973,2938.1,2937.5,0.09877552]
[1766580105915,4.50406973,2938.1,2937.3,0.09877552]
[1766580106110,4.47006973,2937.8,2937.1,0.09877552]
[1766580106412,4.47006973,2937.8,2937.3,0.09877552]
[1766580106413,0.034,2937.7,2937.3,0.09877552]
[1766580108349,3.40413943,2937.6,2937.3,0.09877552]
[1766580108545,0.034,2937.5,2937.3,0.09877552]
[1766580108716,0.034,2937.7,2937.3,0.09877552]
[1766580108916,0.45040697,2937.6,2937.3,0.09877552]
[1766580109112,3.40380001,2937.9,2937.3,0.914]
[1766580109342,3.40380001,2937.9,2937.4,0.09877552]
[1766580109540,3.40380001,2937.9,2937.5,1.1]
[1766580109914,6.80760002,2937.9,2937.5,1.1]
[1766580110122,11.27766975,2937.9,2937.1,0.09877552]
[1766580110321,3.40402355,2937.7,2937.1,0.09877552]
[1766580112542,3.40402355,2937.7,2936.9,0.09877552]
[1766580112543,4.47006973,2937.4,2936.9,0.09877552]
[1766580113031,11.27811683,2937.7,2936.9,0.09877552]
[1766580113641,11.27811683,2937.7,2936.9,0.13282502]
[1766580113956,1.25453244,2937.6,2936.9,0.13282502]
[1766580114242,2.14653244,2937.6,2936.9,0.13282502]
[1766580114437,2.14653244,2937.6,2937.1,0.09877552]
[1766580114613,0.892,2937.6,2937.1,1.01277552]
[1766580116146,4.29615963,2937.6,2937.1,1.01277552]
[1766580116743,4.29615963,2937.6,2937.1,0.09877552]
[1766580117331,7.70031926,2937.6,2937.1,0.09877552]
[1766580117649,4.29615963,2937.6,2937.1,0.09877552]
[1766580117948,0.77002132,2937.5,2936.9,1.04782502]
[1766580118362,0.77002132,2937.5,2937.1,0.09877552]
[1766580118532,0.77002132,2937.5,2936.9,1.04782502]
[1766580118729,4.47006973,2937.3,2936.9,0.001]
[1766580118928,4.47006973,2937.4,2936.9,0.915]
[1766580119138,1.20486779,2937.3,2936.9,0.915]
[1766580119454,1.20486779,2937.3,2936.7,0.09877552]
[1766580119918,1.20486779,2937.3,2936.8,0.914]
[1766580120340,1.20486779,2937.3,2936.7,0.09877552]
[1766580121017,1.20486779,2937.3,2936.8,0.09877552]
[1766580121220,0.9079316,2937.2,2936.8,0.09877552]
[1766580121443,7.87444834,2937.4,2936.8,0.09877552]
[1766580121630,4.47006973,2937.4,2936.8,0.09877552]
[1766580121830,7.8744544,2937.4,2936.8,0.09877552]
[1766580122033,7.8744544,2937.4,2936.5,1.01377552]
[1766580122349,11.27883907,2937.4,2936.7,0.09877552]
[1766580122525,4.47006973,2937.1,2936.6,0.09877552]
[1766580122928,7.87479827,2937.1,2936.6,0.09877552]
[1766580123327,7.87479827,2937.1,2936.5,0.09977552]
[1766580123638,7.87479827,2937.1,2936.4,0.9405]
[1766580123839,7.87479827,2937.1,2936.1,0.09877552]
[1766580123840,7.87479827,2937.1,2936.5,0.09877552]
[1766580124043,0.87667983,2937.0,2936.5,0.09877552]
[1766580124855,4.28155578,2937.0,2936.5,0.09877552]
[1766580125044,4.28155578,2937.0,2936.3,0.09877552]
[1766580125955,4.28155578,2937.0,2936.1,1.03927552]
[1766580126137,7.68643173,2937.0,2936.1,1.03927552]
[1766580126454,11.27904168,2937.0,2935.9,0.09877552]
[1766580126648,11.27904168,2937.0,2936.5,0.001]
[1766580126847,8.18483,2936.9,2936.5,0.001]
[1766580127049,4.29706673,2936.8,2936.5,0.001]
[1766580127357,0.77020283,2936.7,2936.5,0.001]
[1766580127555,0.77020283,2936.7,2936.1,0.09877552]
[1766580127753,0.77020283,2936.7,2935.8,1.04027552]
[1766580127952,0.77020283,2936.7,2936.0,0.09877552]
[1766580129448,4.17540035,2936.7,2936.0,0.09877552]
[1766580130124,0.77020283,2936.7,2936.2,0.09877552]
[1766580130329,4.2971317,2936.8,2936.2,0.09877552]
[1766580132059,0.892,2936.8,2936.2,1.03927552]
[1766580132265,0.892,2936.8,2936.4,1.03927552]
[1766580132762,4.29707543,2936.8,2936.4,0.09877552]
[1766580132934,4.29707543,2936.8,2936.0,0.09877552]
[1766580133134,4.29707543,2936.8,2936.0,1.49379952]
[1766580133660,0.892,2936.8,2936.2,0.09877552]
[1766580133963,0.892,2936.8,2936.2,1.03927552]
[1766580135234,4.29707098,2936.8,2936.2,1.03927552]
[1766580135437,12.17143174,2936.8,2936.0,0.001]
[1766580135634,0.4297071,2936.7,2936.0,0.001]
[1766580136043,0.4297071,2936.7,2935.9,0.9405]
[1766580137858,3.40529864,2936.6,2935.9,0.9405]
[1766580138158,6.81059728,2936.6,2935.9,0.9405]
[1766580138376,0.72403044,2936.5,2935.9,0.9405]
[1766580140456,4.29753058,2936.4,2935.9,0.9405]
[1766580142667,0.892,2936.4,2935.9,0.9405]
[1766580143661,4.29755757,2936.4,2935.9,0.9405]
[1766580144274,4.29755757,2936.4,2935.9,0.9415]
[1766580144462,0.5021588,2936.3,2935.9,0.9415]
[1766580147946,0.892,2936.4,2936.1,0.9405]
[1766580149270,0.72403044,2936.5,2936.1,0.9405]
[1766580149977,4.72691072,2936.7,2936.1,0.9405]
[1766580150894,4.72690772,2936.7,2936.1,0.9405]
[1766580155951,8.13210834,2936.7,2936.1,0.9405]
[1766580157173,8.13210834,2936.7,2936.0,0.001]
[1766580157352,8.13210834,2936.7,2935.9,0.001]
[1766580157554,0.81321083,2936.6,2935.9,0.001]
[1766580158783,0.81321083,2936.6,2935.9,1.04347552]
[1766580159961,3.4054146,2936.5,2935.9,1.04347552]
[1766580161682,4.21857232,2936.6,2935.9,1.04347552]
[1766580162267,1.3237071,2936.7,2936.1,0.9437]
[1766580162451,3.40531728,2936.6,2936.1,0.9437]
[1766580163170,4.29921912,2936.7,2936.2,0.09877552]
[1766580163349,0.894,2936.7,2936.3,0.9437]
[1766580166886,4.2992144,2936.7,2935.9,0.001]
[1766580167115,8.13435024,2936.7,2935.9,0.001]
[1766580168866,8.13435024,2936.7,2936.0,0.001]
[1766580177300,8.13435024,2936.7,2936.0,0.9447]
[1766580178806,8.13435024,2936.7,2936.0,0.001]
[1766580197616,8.13435024,2936.7,2935.9,0.001]
[1766580197921,1.60092923,2936.6,2935.9,0.001]
[1766580199318,4.46985025,2936.5,2935.9,0.001]
[1766580199825,6.81106116,2936.4,2935.9,0.001]
[1766580200119,0.892,2936.3,2935.9,0.001]
[1766580200317,4.46985025,2936.2,2935.9,0.001]
[1766580200624,0.53618503,2936.1,2935.4,0.001]
[1766580202517,3.94208573,2936.1,2935.4,0.001]
[1766580203921,4.46985025,2936.0,2935.4,0.001]
[1766580204118,0.892,2935.9,2935.3,0.001]
[1766580204320,0.53618503,2935.8,2935.3,0.001]
[1766580205295,0.53618503,2935.8,2935.1,0.9848]
[1766580205925,0.53618503,2935.8,2935.1,1.08357552]
[1766580215229,0.53618503,2935.8,2935.1,1.1176459]
[1766580215434,0.892,2935.9,2935.3,1.04587552]
[1766580218036,0.53618503,2936.1,2935.3,1.04587552]
[1766580218238,0.892,2936.1,2935.6,0.948]
[1766580219740,0.002,2936.5,2936.0,0.948]
[1766580220356,0.892,2936.8,2936.2,0.948]
[1766580221321,0.002,2937.0,2936.2,0.948]
[1766580223363,0.002,2937.0,2936.2,3.40574369]
[1766580223527,0.002,2937.0,2936.3,1.04677552]
[1766580223723,0.002,2937.0,2936.5,0.948]
[1766580225027,0.002,2937.0,2936.2,0.893]
[1766580225223,0.002,2937.0,2936.3,0.948]
[1766580225472,0.002,2937.0,2936.4,0.948]
[1766580226561,0.002,2937.0,2936.4,3.40552461]
[1766580226736,0.002,2937.0,2936.5,0.98205414]
[1766580231680,0.002,2937.0,2936.5,0.948]
[1766580234178,0.002,2937.0,2936.3,0.948]
[1766580235155,0.002,2937.0,2936.3,1.04677552]
[1766580235356,0.44918503,2937.0,2936.3,1.04677552]
[1766580235773,0.44918503,2937.0,2936.3,0.948]
[1766580235774,8.15108051,2937.0,2936.3,0.948]
[1766580235985,4.74613277,2937.0,2936.1,0.948]
[1766580236286,4.74613277,2937.0,2936.3,0.948]
[1766580241488,1.34118503,2937.0,2936.3,0.948]
[1766580241699,0.894,2937.0,2936.3,0.948]
[1766580241898,0.002,2937.0,2936.3,0.948]
[1766580242196,0.002,2937.0,2936.5,0.9899]
[1766580247993,0.002,2937.0,2936.7,0.9899]
[1766580251120,3.40439994,2937.4,2936.7,0.9899]
[1766580251321,4.17446296,2937.4,2936.7,0.9899]
[1766580253647,0.77006302,2937.4,2936.7,0.9899]
[1766580253850,3.40430927,2937.5,2936.9,0.9899]
[1766580258872,6.80861775,2937.5,2936.9,0.9899]
[1766580259357,6.81061775,2937.5,2936.9,0.9899]
[1766580260353,3.40630848,2937.5,2936.9,0.9899]
[1766580261459,6.81061696,2937.5,2936.9,0.9899]
[1766580261648,7.58107866,2937.5,2936.9,0.9899]
[1766580262159,4.17677018,2937.5,2936.9,0.9899]
[1766580265760,7.58107866,2937.5,2936.9,0.9899]
[1766580266667,7.58107866,2937.5,2936.7,0.9899]
[1766580267636,7.58107866,2937.5,2936.9,0.001]
[1766580267970,0.84730787,2937.4,2936.9,0.001]
[1766580269238,3.40448711,2937.3,2936.9,0.001]
[1766580273474,6.80897422,2937.3,2936.5,0.9911]
[1766580274453,6.80897422,2937.3,2936.7,2.1]
[1766580275953,5.35954293,2937.2,2936.1,0.9901]
[1766580276271,6.12517114,2937.2,2936.1,1.08887552]
[1766580278074,6.80943788,2937.1,2936.1,1.08887552]
[1766580278378,6.80943788,2937.1,2936.1,1.1229343]
[1766580278551,0.84670661,2937.0,2936.1,1.1229343]
[1766580279978,3.40471894,2937.1,2936.4,0.9779]
[1766580280283,6.80897422,2937.3,2936.5,0.03405414]
[1766580280460,3.40448711,2937.3,2936.6,0.9779]
[1766580280660,7.57479529,2937.3,2936.6,0.9779]
[1766580283380,7.57679529,2937.3,2936.6,0.9779]
[1766580283600,7.57679529,2937.3,2936.3,0.09877552]
[1766580283601,7.57679529,2937.3,2936.2,0.9779]
[1766580283762,7.57679529,2937.3,2936.3,0.09877552]
[1766580283964,7.57679529,2937.3,2936.3,1.07667552]
[1766580284280,1.20443382,2937.2,2936.3,1.07667552]
[1766580285395,3.40471894,2937.1,2936.3,1.07667552]
[1766580285884,6.80943788,2937.1,2936.3,1.07667552]
[1766580288382,6.80943788,2937.1,2936.3,0.9779]
[1766580292689,6.80943788,2937.1,2936.5,2.1]
[1766580292891,0.89058717,2937.0,2936.5,2.1]
[1766580293892,0.89058717,2937.0,2936.5,1.1]
[1766580294189,0.89058717,2937.0,2936.5,1e-08]
[1766580294390,3.40495079,2936.9,2936.3,0.9789]
[1766580299189,0.89058717,2937.0,2936.3,0.9789]
[1766580299394,3.40478005,2937.1,2936.4,0.9779]
[1766580299866,6.8095601,2937.1,2936.4,0.9779]
[1766580306390,3.40478005,2937.1,2936.4,0.9779]
[1766580307794,3.40478005,2937.1,2936.5,0.03405414]
[1766580308000,3.40478005,2937.1,2936.6,0.9416]
[1766580308195,4.25170399,2937.1,2936.6,0.9416]
[1766580309402,7.65648404,2937.1,2936.6,0.9416]
[1766580310380,4.25370399,2937.1,2936.6,0.9416]
[1766580311798,7.65848404,2937.1,2936.4,0.001]
[1766580312002,7.65848404,2937.1,2936.2,0.9779]
[1766580312003,4.46820423,2936.8,2936.2,0.9779]
[1766580312303,4.46820423,2936.5,2936.0,0.9426]
[1766580312479,6.81036536,2936.7,2936.0,0.9426]
[1766580312676,3.40518268,2936.7,2936.0,0.9426]
[1766580313006,7.8328585,2936.7,2936.0,0.9426]
[1766580313180,1.23010627,2936.6,2936.0,0.9426]
[1766580314706,4.63548727,2936.6,2936.0,0.9426]
[1766580315280,8.04086827,2936.6,2936.0,0.001]
[1766580315605,0.9426,2936.5,2936.0,0.001]
[1766580317006,4.34804963,2936.5,2936.0,0.001]
[1766580317211,0.55781559,2936.4,2936.0,0.001]
[1766580317389,4.34804963,2936.5,2936.0,0.001]
[1766580318310,7.75349926,2936.5,2935.8,0.97566226]
[1766580318519,7.75349926,2936.5,2935.7,0.001]
[1766580318520,7.70289926,2936.5,2935.7,0.001]
[1766580318806,6.81129312,2936.3,2935.7,0.001]
[1766580319010,30.0,2936.2,2935.3,0.9426]
[1766580319411,4.46820423,2936.0,2935.3,0.001]
[1766580319781,1.88377552,2936.1,2935.3,0.001]
[1766580320184,1.88377552,2936.1,2935.2,0.9416]
[1766580320507,0.18837755,2936.0,2935.1,0.001]
[1766580320914,36.81222112,2935.9,2934.9,0.9426]
[1766580321094,4.46820423,2935.7,2934.9,0.9426]
[1766580321303,0.0340717,2935.6,2934.9,0.9426]
[1766580321811,0.9766717,2935.6,2934.9,0.9426]
[1766580321984,0.9766717,2935.6,2934.9,0.001]
[1766580322180,1.61035929,2935.6,2934.9,0.001]
[1766580322486,1.61035929,2935.6,2934.8,0.001]
[1766580322893,6.81314936,2935.5,2934.7,0.001]
[1766580323098,0.0340717,2935.4,2934.7,0.001]
[1766580323639,0.9416,2935.3,2934.7,0.001]
[1766580323808,0.0340717,2935.2,2934.7,0.001]
[1766580325116,3.44107048,2935.2,2934.7,0.001]
[1766580325410,3.87933753,2935.2,2934.6,0.001]
[1766580325610,3.87933753,2935.2,2934.6,0.03507619]
[1766580328100,0.9756717,2935.3,2934.6,0.97667619]
[1766580328302,3.40674559,2935.4,2934.7,0.9416]
[1766580328519,3.40674559,2935.4,2934.9,0.9416]
[1766580329220,0.0340717,2935.3,2934.9,0.9416]
[1766580329622,3.40674559,2935.4,2934.9,0.9416]
[1766580330287,3.44081729,2935.4,2934.9,0.9416]
[1766580330996,3.44081729,2935.4,2934.7,0.9416]
[1766580331197,7.63459157,2935.4,2934.7,0.9416]
[1766580331402,7.60051987,2935.4,2934.7,0.9416]
[1766580331605,0.9756717,2935.3,2934.7,0.9416]
[1766580332005,0.0340717,2935.3,2934.7,0.9416]
[1766580332200,0.76345916,2935.2,2934.7,0.9416]
[1766580332405,0.0340717,2935.1,2934.7,0.9416]
[1766580334429,3.44111074,2935.1,2934.7,0.9416]
[1766580336225,3.44111074,2935.1,2934.6,0.001]
[1766580336730,3.44111074,2935.1,2934.6,0.03507619]
[1766580340322,3.44111074,2935.1,2934.6,0.97107619]
[1766580340708,3.44311074,2935.1,2934.6,0.97107619]
[1766580341831,6.85014978,2935.1,2934.6,0.03507619]
[1766580342005,7.67159897,2935.1,2934.5,0.001]
[1766580343230,0.0340717,2935.0,2934.5,0.001]
[1766580345404,4.29871104,2935.1,2934.5,0.937]
[1766580345604,3.44319015,2935.1,2934.6,0.03407619]
[1766580345907,3.44319015,2935.1,2934.6,0.97007619]
[1766580347616,3.44319015,2935.1,2934.6,0.936]
[1766580348733,6.85028215,2935.1,2934.6,1e-08]
[1766580348936,6.81621045,2935.1,2934.5,0.001]
[1766580349235,0.88619866,2935.0,2934.5,0.001]
[1766580349830,3.40727111,2934.9,2934.5,0.001]
[1766580350028,0.0340717,2934.8,2934.5,0.001]
[1766580350723,0.0340717,2934.9,2934.5,0.001]
[1766580350928,0.0340717,2935.0,2934.5,0.97107735]
[1766580353038,3.44320203,2935.1,2934.5,0.97107735]
[1766580355312,4.16856295,2935.0,2934.5,0.97107735]
[1766580355537,3.40720448,2935.0,2934.5,0.97107735]
[1766580355843,3.44127618,2935.0,2934.5,0.97107735]
[1766580356441,0.0340717,2935.0,2934.5,0.97107735]
[1766580359947,3.44122852,2935.0,2934.5,0.97107735]
[1766580361443,6.84838534,2935.0,2934.5,0.001]
[1766580361628,0.68503853,2934.9,2934.5,0.001]
[1766580361827,0.0340717,2934.8,2934.5,0.001]
[1766580362231,0.71911023,2934.9,2934.5,0.9493]
[1766580362431,0.0340717,2934.9,2934.5,0.9493]
[1766580363322,0.0340717,2935.0,2934.5,0.9493]
[1766580365049,0.0360717,2935.0,2934.5,0.9493]
[1766580369422,0.0360717,2935.0,2934.6,0.03407619]
[1766580369623,0.0360717,2935.0,2934.6,0.9483]
[1766580370147,3.44323843,2935.0,2934.6,0.9483]
[1766580370328,0.34452384,2934.9,2934.5,0.001]
[1766580370532,0.0340717,2934.8,2934.5,0.001]
[1766580376192,3.44146951,2934.8,2934.5,0.001]
[1766580376365,0.0340717,2934.8,2934.5,0.001]
[1766580377063,0.002,2935.0,2934.6,0.9483]
[1766580377262,0.0360717,2935.0,2934.6,0.9483]
[1766580377430,3.44324022,2935.0,2934.6,0.9483]
[1766580378852,4.21775689,2935.0,2934.5,0.001]
[1766580384153,7.62492541,2935.0,2934.5,0.001]
[1766580384358,7.59085371,2935.0,2934.5,0.001]
[1766580384556,0.0340717,2934.9,2934.5,0.001]
[1766580386376,0.0340717,2934.9,2934.5,0.9493]
[1766580386574,0.7967556,2934.9,2934.5,0.9493]
[1766580386771,4.20404943,2934.9,2934.5,0.9493]
[1766580391079,3.44136553,2934.9,2934.5,0.9493]
[1766580391877,0.0340717,2934.9,2934.5,0.9493]
[1766580392070,3.40727524,2934.9,2934.5,0.9493]
[1766580392270,0.0340717,2934.8,2934.5,0.9493]
[1766580394983,0.0340717,2934.9,2934.5,0.9493]
[1766580396484,0.71931039,2934.9,2934.5,0.9493]
[1766580396893,4.12663905,2934.9,2934.5,0.9493]
[1766580397996,0.71931039,2934.9,2934.5,0.9493]
[1766580398717,0.002,2935.0,2934.7,0.9191]
[1766580398875,0.002,2935.0,2934.9,0.9191]
[1766580399192,0.002,2935.1,2934.9,1e-08]
[1766580399193,0.0360717,2935.1,2934.9,1e-08]
[1766580399994,0.0360717,2935.1,2934.5,0.001]
[1766580399995,0.0360717,2935.1,2934.6,0.9191]
[1766580400792,0.0360717,2935.1,2934.5,0.001]
[1766580400995,0.6849941,2935.0,2934.5,0.001]
[1766580401184,3.44137945,2934.9,2934.5,0.001]
[1766580404976,3.44137945,2934.9,2934.5,0.9201]
[1766580410400,3.44337945,2934.9,2934.5,0.9201]
[1766580410708,0.0360717,2934.9,2934.5,0.9201]
[1766580412906,3.44337128,2934.9,2934.5,0.9201]
[1766580414009,3.44337128,2934.9,2934.5,0.001]
[1766580414483,0.0360717,2934.9,2934.5,0.001]
[1766580414885,0.0360717,2934.9,2934.5,0.03507735]
[1766580417307,0.0360717,2934.9,2934.5,0.95417735]
[1766580419305,0.002,2934.9,2934.5,0.95417735]
[1766580421719,0.002,2934.9,2934.5,0.001]
[1766580421923,0.34453362,2934.8,2934.5,0.001]
[1766580425293,3.75196032,2934.8,2934.5,0.001]
[1766580426921,0.34453362,2934.8,2934.5,0.001]
[1766580428215,3.44339593,2934.9,2934.5,0.001]
[1766580435242,3.44339593,2934.9,2934.5,0.9686]
[1766580438309,0.002,2934.9,2934.6,1.00167619]
[1766580438810,0.002,2934.9,2934.6,0.9676]
[1766580441755,0.002,2934.9,2934.5,0.001]
[1766580442053,0.68524593,2934.8,2934.5,0.001]
[1766580442350,0.002,2934.9,2934.5,0.9686]
[1766580442748,0.002,2934.9,2934.5,0.001]
[1766580442940,0.002,2934.9,2934.3,0.001]
[1766580443248,0.002,2934.9,2934.3,0.9686]
[1766580444149,0.002,2934.9,2934.5,0.001]
[1766580444456,0.77332402,2934.9,2934.5,0.9686]
[1766580444650,0.002,2934.9,2934.5,0.9686]
[1766580444852,0.0360717,2934.9,2934.5,0.9686]
[1766580448058,0.002,2934.9,2934.5,0.9686]
[1766580455269,0.002,2934.9,2934.5,0.001]
[1766580455431,0.002,2934.9,2934.3,0.9193]
[1766580457772,0.002,2934.9,2934.5,0.001]
[1766580457971,0.68742852,2934.9,2934.5,0.001]
[1766580458474,4.09470297,2934.9,2934.5,0.001]
[1766580461473,0.68742852,2934.9,2934.5,0.001]
[1766580461672,0.002,2934.9,2934.5,0.001]
[1766580462876,0.002,2934.9,2934.5,0.9307]
[1766580465083,0.893,2934.8,2934.3,0.001]
[1766580465377,0.0340717,2934.7,2934.3,0.001]
[1766580465542,4.50844506,2934.7,2934.2,0.001]
[1766580465874,0.54014451,2934.6,2934.2,0.001]
[1766580466064,0.0340717,2934.5,2934.2,0.001]
[1766580466238,0.893,2934.4,2934.2,0.001]
[1766580467773,4.30089494,2934.4,2934.0,0.001]
[1766580468872,0.0340717,2934.5,2934.0,0.9307]
[1766580469172,0.893,2934.4,2934.1,0.034082]
[1766580469577,0.9270717,2934.4,2934.0,0.9307]
[1766580471183,1.36055348,2934.4,2934.0,0.9307]
[1766580471351,4.33501384,2934.4,2934.0,0.9307]
[1766580472079,4.33501384,2934.4,2934.0,0.001]
[1766580472382,4.33501384,2934.4,2933.9,0.001]
[1766580474895,0.9270717,2934.4,2933.9,0.001]
[1766580475080,0.9270717,2934.4,2933.9,0.9307]
[1766580476682,4.33492665,2934.4,2933.9,0.9307]
[1766580478885,4.33692665,2934.4,2933.9,0.9307]
[1766580479180,3.44392665,2934.4,2933.9,0.9307]
[1766580482589,0.0360717,2934.4,2933.9,0.9307]
[1766580482884,3.44392981,2934.4,2933.9,0.9307]
[1766580484783,3.44392662,2934.4,2933.9,0.9307]
[1766580485285,0.0360717,2934.4,2933.9,0.9307]
[1766580485986,4.31146055,2934.4,2933.7,0.9511]
[1766580486166,7.71933003,2934.4,2933.7,0.9511]
[1766580486358,7.68525833,2934.4,2933.7,0.9511]
[1766580486558,0.0340717,2934.3,2933.7,0.9511]
[1766580487089,3.44206032,2934.3,2933.7,0.9511]
[1766580487798,3.44206032,2934.3,2933.9,0.001]
[1766580487978,0.86705415,2934.2,2933.9,0.001]
[1766580488373,0.0340717,2934.1,2933.9,0.001]
[1766580489382,4.35908862,2934.3,2933.9,0.9511]
[1766580489383,0.0340717,2934.3,2933.9,0.9511]
[1766580489688,3.40986713,2934.4,2934.0,0.03408316]
[1766580489985,0.0340717,2934.3,2934.0,0.9501]
[1766580491582,3.44205183,2934.3,2934.0,0.9501]
[1766580494092,3.44205183,2934.3,2933.9,0.001]
[1766580494578,3.44205183,2934.3,2933.9,0.9511]
[1766580496995,3.78325183,2934.3,2933.9,0.9511]
[1766580497565,4.58918216,2934.3,2933.9,0.9511]
[1766580499791,0.3412,2934.2,2933.9,0.001]
[1766580499991,0.3402,2934.0,2933.7,0.001]
[1766580501497,0.3742717,2933.9,2933.6,0.001]
[1766580501661,0.3742717,2933.9,2933.4,0.001]
[1766580501867,0.3382,2933.7,2933.4,0.001]
[1766580502181,0.3382,2933.7,2933.6,0.001]
[1766580503702,0.3382,2933.7,2933.4,0.001]
[1766580503703,0.3372,2933.6,2933.4,0.001]
[1766580504016,3.78015563,2933.6,2933.3,0.001]
[1766580504517,3.78008204,2933.6,2933.3,0.001]
[1766580505594,0.3712717,2933.6,2933.3,0.001]
[1766580505893,0.3372,2933.6,2933.3,0.03509129]
[1766580506099,3.77887706,2933.8,2933.3,0.98519129]
[1766580506278,4.60054597,2933.8,2933.3,0.98519129]
[1766580517812,4.60054597,2933.8,2933.6,0.1]
[1766580518005,4.60054597,2933.8,2933.3,0.9511]
[1766580518314,0.3362,2933.7,2933.3,0.9511]
[1766580519108,3.74497284,2933.7,2933.3,0.9511]
[1766580519414,0.83500358,2933.6,2933.3,0.9511]
[1766580520010,0.3352,2933.5,2933.0,0.922]
[1766580524109,0.3352,2933.4,2933.0,0.922]
[1766580524587,0.3352,2933.4,2933.0,0.923]
[1766580525313,0.3352,2933.4,2933.0,0.001]
[1766580525714,0.3352,2933.4,2932.8,0.9479]
[1766580528617,0.3352,2933.4,2932.9,0.9469]
[1766580528821,0.0340717,2933.6,2933.0,0.03409478]
[1766580528988,0.0340717,2933.6,2933.1,0.9469]
[1766580531514,1.05758347,2933.6,2933.1,0.9469]
[1766580536791,1.39178347,2933.6,2933.1,0.9469]
[1766580537817,1.35771177,2933.6,2933.1,0.9469]
[1766580538122,0.3342,2933.6,2933.1,0.9469]
[1766580543125,0.3342,2933.5,2933.0,0.001]
[1766580543320,3.40879015,2933.6,2933.0,0.001]
[1766580543321,0.3342,2933.3,2933.0,0.001]
[1766580546529,3.44299132,2933.5,2933.0,0.001]
[1766580546704,4.56471245,2933.5,2933.0,0.001]
[1766580547232,4.23051245,2933.5,2933.0,0.001]
[1766580547433,0.3342,2933.4,2933.0,0.001]
[1766580553939,0.3342,2933.4,2933.0,0.9109]
[1766580555739,0.0340717,2933.5,2933.0,0.9109]
[1766580555940,0.002,2933.6,2933.2,0.9099]
[1766580556244,0.002,2933.6,2933.3,0.94399129]
[1766580557034,0.3702717,2933.6,2933.0,0.9109]
[1766580557238,0.3702717,2933.6,2933.1,0.9099]
[1766580561141,0.3342,2933.5,2933.1,0.9099]
[1766580562647,1.02344892,2933.7,2933.3,0.9099]
[1766580562822,0.002,2933.8,2933.5,0.9099]
[1766580563026,0.0360717,2933.8,2933.5,0.9099]
[1766580569848,0.0360717,2933.8,2933.1,2.7138]
[1766580569849,0.3362,2933.7,2933.1,2.7138]
[1766580570053,0.3702717,2933.6,2933.1,1.8039]
[1766580571853,0.3702717,2933.6,2933.1,2.08673384]
[1766580572030,0.3362,2933.5,2933.1,0.894]
[1766580572434,0.0340717,2933.4,2933.0,0.001]
[1766580572624,0.0340717,2933.5,2933.0,0.001]
[1766580573836,0.893,2933.4,2933.0,0.03509478]
[1766580574037,0.893,2933.4,2933.0,0.9334]
[1766580574351,0.893,2933.4,2933.1,0.03409362]
[1766580574655,0.893,2933.4,2933.0,0.9334]
[1766580574956,4.30203617,2933.4,2933.0,0.9334]
[1766580575250,0.0340717,2933.3,2932.8,1.02451177]
[1766580575456,0.9270717,2933.3,2932.8,0.001]
[1766580575644,1.95067426,2933.3,2932.8,0.001]
[1766580575846,0.61343995,2933.2,2932.8,0.001]
[1766580576025,0.61343995,2933.2,2932.8,0.9674971]
[1766580576227,1.54683995,2933.2,2932.8,0.9674971]
[1766580577455,4.95612868,2933.2,2932.8,0.9334]
[1766580578137,1.54683995,2933.2,2932.8,0.9334]
[1766580580654,0.58830935,2933.1,2932.8,0.9334]
[1766580581054,4.95611869,2933.2,2932.8,0.9334]
[1766580581358,1.54683995,2933.2,2932.8,0.9334]
[1766580587143,0.9334,2933.2,2932.8,0.9334]
[1766580589072,4.33823107,2933.3,2932.8,0.9334]
[1766580589274,5.36183363,2933.3,2932.8,0.9334]
[1766580591268,4.33823107,2933.3,2932.8,0.9334]
[1766580595886,4.30385718,2933.6,2932.9,0.95849594]
[1766580596261,4.30385718,2933.6,2933.0,0.9244]
[1766580596585,4.30385718,2933.6,2933.1,0.95849362]
[1766580596786,0.002,2933.3,2933.1,0.95849362]
[1766580601672,0.002,2933.3,2933.1,0.9244]
[1766580605664,0.895,2933.6,2933.1,0.9244]
[1766580605863,0.002,2933.6,2933.2,0.03409245]
[1766580606065,0.002,2933.6,2933.4,0.9026]
[1766580614904,0.002,2933.6,2933.1,1.02341749]
[1766580615068,0.002,2933.6,2933.2,0.9026]
[1766580616091,3.7927163,2933.6,2933.2,0.9026]
[1766580618689,3.4108163,2933.6,2933.2,0.9026]
[1766580620705,0.002,2933.6,2933.2,0.9026]
[1766580625913,0.3839,2933.6,2933.2,0.9026]
[1766580628785,3.79270958,2933.6,2933.2,0.9026]
[1766580629622,0.3839,2933.6,2933.2,0.9026]
[1766580629819,0.3839,2933.6,2933.1,1.02441749]
[1766580629820,3.79270042,2933.6,2933.1,1.02441749]
[1766580630028,0.3819,2933.5,2933.1,0.001]
[1766580631098,3.79081107,2933.5,2933.1,0.001]
[1766580631727,0.3819,2933.5,2933.1,0.001]
[1766580631934,0.3819,2933.5,2933.3,0.7]
[1766580632222,1.14891837,2933.5,2933.3,0.7]
[1766580634117,0.76701837,2933.5,2933.1,0.001]
[1766580639036,4.17591595,2933.5,2933.1,0.001]
[1766580639531,4.17591595,2933.5,2933.0,0.001]
[1766580643539,4.17591595,2933.5,2932.8,2.00498383]
[1766580643836,0.75867318,2933.4,2932.8,2.00498383]
[1766580644130,0.75867318,2933.4,2933.0,0.001]
[1766580645121,3.41089758,2933.5,2933.0,0.001]
[1766580646644,0.002,2933.5,2933.0,0.001]
[1766580649444,0.893,2933.4,2933.0,0.001]
[1766580651648,0.893,2933.4,2933.0,0.9815]
[1766580653038,0.893,2933.4,2933.0,0.001]
[1766580653349,0.43038992,2933.3,2933.0,0.001]
[1766580653550,0.893,2933.4,2933.0,0.001]
[1766580656521,0.002,2933.5,2933.0,0.9815]
[1766580657464,3.41091032,2933.5,2933.0,0.9815]
[1766580658263,0.002,2933.5,2933.0,0.9815]